[Event "FIDE Grand Swiss 2023"]
[Site "Villa Marina, Douglas, Isle of Man"]
[Date "2023.11.05"]
[Round "11.48"]
[White "Iturrizaga Bonelli, Eduardo"]
[Black "Greenfeld, Alon"]
[Result "1-0"]
[WhiteElo "2615"]
[BlackElo "2455"]
[EventDate "2023.10.25"]
[ECO "A34"]
[PlyCount "65"]
[BlackFideId "2800039"]
[TimeControl "40/100 + 20/50 + 15 + 30s/move"]
[WhiteFideId "3901211"]

1.c4 {[%clk 01:40:56][%emt 00:00:03]} 1...c5 {[%clk 01:36:34][%emt 00:04:16]} 
2.Nc3 {[%clk 01:41:05][%emt 00:00:31]} 2...Nf6 {[%clk 01:32:53][%emt 00:04:11]} 
3.g3 {[%clk 01:40:03][%emt 00:01:32]} 3...e6 {[%clk 01:32:11][%emt 00:01:12]} 
4.Nf3 {[%clk 01:40:19][%emt 00:00:13]} 4...Nc6 {[%clk 01:31:13][%emt 00:01:30]} 
5.Bg2 {[%clk 01:39:59][%emt 00:00:48]} 5...d5 {[%clk 01:30:51][%emt 00:00:53]} 
6.cxd5 {[%clk 01:40:17][%emt 00:00:13]} 6...exd5 {[%clk 01:29:58][%emt
00:01:22]} 7.d4 {[%clk 01:40:35][%emt 00:00:12]} 7...cxd4 {[%clk 01:30:17][%emt
00:00:12]} 8.Nxd4 {[%clk 01:40:59][%emt 00:00:06]} 8...Bc5 {[%clk 01:30:35][%emt
00:00:11]} 9.Nxc6 {[%clk 01:39:20][%emt 00:02:10]} 9...bxc6 {[%clk
01:29:45][%emt 00:01:20]} 10.Na4 {[%clk 01:39:45][%emt 00:00:05]} 10...Bb6 
{[%clk 01:27:43]} 11.Nxb6 {[%clk 01:40:08][%emt 00:00:07]} 11...axb6 {[%clk
01:27:04][%emt 00:01:09]} 12.Qc2 {[%clk 01:40:03][%emt 00:00:36]} 12...Bd7 
{[%clk 01:25:08][%emt 00:02:25]} 13.O-O {[%clk 01:39:13][%emt 00:01:20]} 
13...O-O {[%clk 01:25:16][%emt 00:00:22]} 14.a4 {[%clk 01:39:39][%emt 00:00:04]} 
14...Re8 {[%clk 01:17:29][%emt 00:08:16]} 15.b4 {[%clk 01:03:43][%emt 00:36:27]} 
15...Ne4 {[%clk 01:13:12][%emt 00:04:47]} 16.Be3 {[%clk 00:58:27][%emt
00:05:47]} 16...h5 {[%clk 01:11:38][%emt 00:02:03]} 17.Rfd1 {[%clk
00:52:47][%emt 00:06:10]} 17...h4 {[%clk 01:00:34][%emt 00:11:34]} 18.b5 {[%clk
00:53:14][%emt 00:00:04]} 18...cxb5 {[%clk 00:56:57][%emt 00:04:06]} 19.Rxd5 
{[%clk 00:49:59][%emt 00:03:46]} 19...Nf6 {[%clk 00:55:47][%emt 00:01:40]} 
20.Bg5 {[%clk 00:48:08][%emt 00:02:21]} 20...Qe7 {[%clk 00:39:08][%emt
00:17:08]} 21.Bxh4 {[%clk 00:20:09][%emt 00:28:29]} 21...bxa4 {[%clk
00:34:26][%emt 00:05:12]} 22.Rd4 {[%clk 00:07:10][%emt 00:13:29]} 22...Ra5 
{[%clk 00:28:53][%emt 00:06:03]} 23.Qd2 {[%clk 00:05:47][%emt 00:01:52]} 
23...a3 {[%clk 00:28:03][%emt 00:01:21]} 24.h3 {[%clk 00:02:43][%emt 00:03:35]} 
24...Qe5 {[%clk 00:21:01][%emt 00:07:31]} 25.e3 {[%clk 00:01:57][%emt 00:01:16]} 
25...Bf5 {[%clk 00:14:21][%emt 00:07:10]} 26.g4 {[%clk 00:02:08][%emt 00:00:20]} 
26...Ne4 {[%clk 00:13:52][%emt 00:00:58]} 27.Qb4 {[%clk 00:02:14][%emt
00:00:25]} 27...Bh7 {[%clk 00:13:09][%emt 00:01:13]} 28.f4 {[%clk 00:01:11][%emt
00:01:33]} 28...Qb5 {[%clk 00:06:35][%emt 00:07:04]} 29.Bxe4 {[%clk
00:00:53][%emt 00:00:48]} 29...Bxe4 {[%clk 00:06:52][%emt 00:00:13]} 30.Rxe4 
{[%clk 00:01:18][%emt 00:00:05]} 30...Rxe4 {[%clk 00:07:13][%emt 00:00:09]} 
31.Qxe4 {[%clk 00:01:45]} ( 31.Qc4 {[%emt 00:00:02]} 31...Rd4 32.Qxd4 {[%clk
00:01:45]} 32...Qb3 {[%emt 00:00:12]} 33.Qe4 Qb2 {[%clk 00:07:31]} 34.Rd1 
{[%clk 00:01:04][%emt 00:01:11]} 34...g6 {[%clk 00:06:41] [%emt 00:01:21]} 
35.Qe8+ {[%clk 00:01:20] [%emt 00:00:14]} ) 31...Qb2 {[%clk 00:07:31][%emt
00:00:14]} 32.Rd1 {[%clk 00:01:04][%emt 00:01:11]} 32...g6 {[%clk 00:06:41][%emt
00:01:21]} 33.Qe8+ {[%clk 00:01:20][%emt 00:00:14]} 1-0

[Event "FIDE Grand Swiss 2023"]
[Site "Villa Marina, Douglas, Isle of Man"]
[Date "2023.11.05"]
[Round "11.55"]
[White "Fawzy, Adham"]
[Black "Maurizzi, Marc`andria"]
[Result "1/2-1/2"]
[WhiteElo "2535"]
[BlackElo "2555"]
[EventDate "2023.10.25"]
[ECO "D00"]
[PlyCount "77"]
[BlackFideId "36083534"]
[TimeControl "40/100 + 20/50 + 15 + 30s/move"]
[WhiteFideId "10613129"]

1.d4 {[%clk 01:40:45][%emt 00:00:15]} 1...d5 {[%clk 01:39:50][%emt 00:01:10]} 
2.Nc3 {[%clk 01:41:07][%emt 00:00:08]} 2...Nf6 {[%clk 01:39:43][%emt 00:00:37]} 
3.Bf4 {[%clk 01:41:29][%emt 00:00:07]} 3...a6 {[%clk 01:39:04][%emt 00:01:10]} 
4.e3 {[%clk 01:40:49][%emt 00:01:10]} 4...c5 {[%clk 01:38:49][%emt 00:00:45]} 
5.dxc5 {[%clk 01:37:32][%emt 00:03:47]} 5...e6 {[%clk 01:37:10][%emt 00:02:09]} 
6.Nf3 {[%clk 01:26:19][%emt 00:11:43]} 6...Bxc5 {[%clk 01:35:04][%emt 00:02:36]} 
7.Bd3 {[%clk 01:26:41][%emt 00:00:07]} 7...O-O {[%clk 01:32:55][%emt 00:02:37]} 
8.O-O {[%clk 01:27:01][%emt 00:00:12]} 8...Nbd7 {[%clk 01:30:00][%emt 00:03:23]} 
9.e4 {[%clk 01:23:09][%emt 00:04:25]} 9...dxe4 {[%clk 01:29:56][%emt 00:00:34]} 
10.Nxe4 {[%clk 01:23:19][%emt 00:00:20]} 10...Nxe4 {[%clk 01:29:47][%emt
00:00:39]} 11.Bxe4 {[%clk 01:23:45][%emt 00:00:04]} 11...Nf6 {[%clk
01:30:00][%emt 00:00:17]} 12.Qe2 {[%clk 01:16:03][%emt 00:08:12]} 12...Nxe4 
{[%clk 01:25:25][%emt 00:05:05]} 13.Qxe4 {[%clk 01:16:05][%emt 00:00:28]} 
13...f6 {[%clk 01:25:33][%emt 00:00:22]} 14.Qc4 {[%clk 01:07:23][%emt 00:09:11]} 
14...Qb6 {[%clk 01:23:13][%emt 00:02:51]} 15.Rad1 {[%clk 00:57:57][%emt
00:09:56]} 15...Kh8 {[%clk 01:12:13][%emt 00:11:30]} 16.Nd2 {[%clk
00:57:53][%emt 00:00:33]} 16...e5 {[%clk 01:11:50][%emt 00:00:53]} 17.Nb3 
{[%clk 00:57:04][%emt 00:01:19]} 17...Be7 {[%clk 00:56:00][%emt 00:16:20]} 
18.Be3 {[%clk 00:55:15][%emt 00:02:19]} 18...Be6 {[%clk 00:56:18][%emt
00:00:14]} 19.Bxb6 {[%clk 00:51:50][%emt 00:03:54]} 19...Bxc4 {[%clk
00:56:43][%emt 00:00:05]} 20.Rfe1 {[%clk 00:52:11][%emt 00:00:08]} 20...Bb5 
{[%clk 00:55:53][%emt 00:01:20]} 21.f4 {[%clk 00:48:18][%emt 00:04:22]} 
21...Kg8 {[%clk 00:46:02][%emt 00:10:22]} 22.Nd4 {[%clk 00:28:31][%emt
00:20:18]} 22...exd4 {[%clk 00:41:07][%emt 00:05:25]} 23.Rxe7 {[%clk
00:28:52][%emt 00:00:09]} 23...Rf7 {[%clk 00:40:18][%emt 00:01:18]} 24.Rxf7 
{[%clk 00:21:19][%emt 00:08:04]} 24...Kxf7 {[%clk 00:40:47][%emt 00:00:01]} 
25.Rxd4 {[%clk 00:21:14][%emt 00:00:35]} 25...Re8 {[%clk 00:41:12][%emt
00:00:05]} 26.c4 {[%clk 00:18:16][%emt 00:03:27]} 26...Bc6 {[%clk 00:41:37][%emt
00:00:05]} 27.Kf2 {[%clk 00:18:29][%emt 00:00:17]} 27...Re4 {[%clk
00:42:04][%emt 00:00:03]} 28.g3 {[%clk 00:18:38][%emt 00:00:21]} 28...Ke6 
{[%clk 00:42:02][%emt 00:00:32]} 29.Rxe4+ {[%clk 00:18:02][%emt 00:01:07]} 
29...Bxe4 {[%clk 00:42:30][%emt 00:00:02]} 30.Ke3 {[%clk 00:18:30][%emt
00:00:01]} 30...Bc6 {[%clk 00:41:52][%emt 00:01:08]} 31.g4 {[%clk 00:16:48][%emt
00:02:12]} 31...g5 {[%clk 00:39:02][%emt 00:03:21]} 32.b3 {[%clk 00:16:52][%emt
00:00:27]} 32...Bg2 {[%clk 00:38:49][%emt 00:00:42]} 33.fxg5 {[%clk
00:14:53][%emt 00:02:29]} 33...fxg5 {[%clk 00:39:14][%emt 00:00:02]} 34.Bd8 
{[%clk 00:15:07][%emt 00:00:18]} 34...h6 {[%clk 00:39:07][%emt 00:00:37]} 
35.Bb6 {[%clk 00:15:34][%emt 00:00:03]} 35...Bh3 {[%clk 00:38:33][%emt
00:01:03]} 36.Kf3 {[%clk 00:15:37][%emt 00:00:28]} 36...Bf1 {[%clk
00:38:41][%emt 00:00:22]} 37.Bd4 {[%clk 00:15:07][%emt 00:01:01]} 37...Kf7 
{[%clk 00:39:04][%emt 00:00:06]} 38.Ke3 {[%clk 00:10:12][%emt 00:05:25]} 
38...Bh3 {[%clk 00:39:14][%emt 00:00:20]} 39.Kf3 {[%clk 00:10:10]} ( 39.Ke4 
{[%emt 00:00:06]} ) 1/2-1/2